bitfinex/quotes_BTCUSD_20251016
["timestamp","ask_amount","ask_price","bid_price","bid_amount"]
[1760628863593,0.2402868,110360.0,110340.0,0.18125634]
[1760628864002,0.1812415,110350.0,110330.0,0.36894599]
[1760628864218,0.3012415,110350.0,110330.0,0.18601712]
[1760628864427,0.18125793,110340.0,110330.0,0.00474277]
[1760628864635,0.1812415,110350.0,110330.0,0.18601712]
[1760628864876,0.3012415,110350.0,110330.0,0.18601712]
[1760628865107,0.3012415,110350.0,110330.0,0.00474277]
[1760628865352,0.18125793,110340.0,110330.0,0.00474277]
[1760628865586,0.30125793,110340.0,110330.0,0.00474277]
[1760628865851,0.30175766,110340.0,110330.0,0.00474277]
[1760628866257,0.30472887,110340.0,110330.0,0.00474277]
[1760628866669,0.30472887,110340.0,110330.0,0.18127435]
[1760628866670,0.12504954,110340.0,110330.0,0.18127435]
[1760628866877,0.12504954,110340.0,110330.0,0.19940178]
[1760628867082,0.00504954,110340.0,110330.0,0.18127435]
[1760628867920,0.00504954,110340.0,110330.0,0.663393]
[1760628868142,0.00347094,110340.0,110330.0,1.1292654]
[1760628868447,0.00347094,110340.0,110330.0,0.64714675]
[1760628868691,0.00347094,110340.0,110330.0,1.1292654]
[1760628869362,0.00347094,110340.0,110330.0,1.2224654]
[1760628870724,0.00347094,110340.0,110330.0,0.36416447]
[1760628870950,0.00347094,110340.0,110330.0,0.84628312]
[1760628871201,0.00347094,110340.0,110330.0,0.84728312]
[1760628871458,0.00347094,110340.0,110330.0,1.2224654]
[1760628872850,0.00347094,110340.0,110330.0,1.2234654]
[1760628873075,0.00347094,110340.0,110330.0,1.2224654]
[1760628873807,0.00347094,110340.0,110330.0,0.27196447]
[1760628874040,0.00347094,110340.0,110330.0,0.09069012]
[1760628874293,0.00347094,110340.0,110330.0,0.27196447]
[1760628874759,0.00347094,110340.0,110330.0,0.27096447]
[1760628876208,0.00347094,110340.0,110330.0,0.75408312]
[1760628876444,0.00347094,110340.0,110330.0,0.75308312]
[1760628877129,0.00297121,110340.0,110330.0,0.75308312]
[1760628877405,0.00157848,110350.0,110340.0,0.32598699]
[1760628877605,0.17621232,110370.0,110360.0,0.18122508]
[1760628877818,0.17794045,110370.0,110360.0,0.14472906]
[1760628878058,0.31794045,110370.0,110360.0,0.14472906]
[1760628878483,0.31972228,110370.0,110360.0,0.14472906]
[1760628879145,0.37073969,110370.0,110360.0,0.14472906]
[1760628879366,0.31972228,110370.0,110360.0,0.14472906]
[1760628881124,0.32314032,110370.0,110360.0,0.14472906]
[1760628882514,0.32414032,110370.0,110360.0,0.14472906]
[1760628883145,0.66414032,110370.0,110360.0,0.14472906]
[1760628883352,0.66314032,110370.0,110360.0,0.14472906]
[1760628883560,0.73466863,110370.0,110360.0,0.14472906]
[1760628883995,0.73366863,110370.0,110360.0,0.14472906]
[1760628884484,5.73524697,110370.0,110360.0,0.14472906]
[1760628885191,5.73624697,110370.0,110360.0,0.14472906]
[1760628885668,5.66571866,110370.0,110360.0,0.14472906]
[1760628886670,0.44912731,110370.0,110360.0,0.14472906]
[1760628886867,0.47912731,110370.0,110360.0,0.14472906]
[1760628887302,0.553787,110370.0,110360.0,0.32595414]
[1760628887606,0.03257834,110370.0,110360.0,0.32595414]
[1760628887806,0.213787,110370.0,110360.0,0.32595414]
[1760628888007,0.03257834,110370.0,110360.0,0.32595414]
[1760628888225,0.03257834,110370.0,110360.0,0.66334373]
[1760628888421,0.03157834,110370.0,110360.0,0.18122508]
[1760628888624,0.03157834,110370.0,110360.0,0.66334373]
[1760628888825,0.03,110370.0,110360.0,0.18122508]
[1760628889509,0.03,110370.0,110360.0,0.66334373]
[1760628889718,0.03,110370.0,110360.0,0.77318275]
[1760628889918,0.0002,110380.0,110370.0,0.18120866]
[1760628890108,0.0302,110380.0,110370.0,0.18120866]
[1760628890318,0.21419484,110400.0,110380.0,0.18119224]
[1760628890521,0.18117583,110390.0,110380.0,0.18119224]
[1760628890739,0.33042272,110390.0,110370.0,0.18120866]
[1760628890941,0.18119242,110380.0,110360.0,0.08969012]
[1760628891140,0.18120866,110370.0,110360.0,0.18122014]
[1760628891340,0.01924689,110370.0,110360.0,0.18122014]
[1760628891744,0.31045555,110370.0,110360.0,0.001]
[1760628892035,0.31045555,110370.0,110350.0,0.19030344]
[1760628892238,0.31045555,110370.0,110360.0,0.18122508]
[1760628892700,0.31045555,110370.0,110350.0,0.19045327]
[1760628892901,0.18122508,110360.0,110350.0,0.00014983]
[1760628893103,0.18122508,110360.0,110350.0,0.18139133]
[1760628893332,0.19122508,110360.0,110350.0,0.18139133]
[1760628893534,0.21046216,110360.0,110350.0,0.00014983]
[1760628893676,0.21046216,110360.0,110350.0,0.18139133]
[1760628893883,0.01,110360.0,110350.0,0.18139133]
[1760628894093,0.18120866,110370.0,110360.0,0.18122508]
[1760628894329,0.27044631,110370.0,110360.0,0.18122508]
[1760628894497,0.08923765,110370.0,110360.0,0.18122508]
[1760628894838,0.18122508,110360.0,110350.0,0.18138165]
[1760628895161,0.18120881,110370.0,110350.0,0.18138165]
[1760628895363,0.32044958,110370.0,110360.0,0.18122508]
[1760628895761,0.32044958,110370.0,110350.0,0.18137672]
[1760628895967,0.18122508,110360.0,110350.0,0.18137672]
[1760628896178,0.21046585,110360.0,110350.0,0.00014983]
[1760628897766,0.19046585,110360.0,110350.0,0.00014983]
[1760628899236,0.22779114,110360.0,110350.0,0.00014983]
[1760628899440,0.56779114,110360.0,110350.0,0.00014983]
[1760628899657,0.53046585,110360.0,110350.0,0.00014983]
[1760628900926,0.55423779,110360.0,110350.0,0.00014983]
[1760628901136,0.19046585,110360.0,110350.0,0.00014983]
[1760628901349,0.02924077,110360.0,110350.0,0.18139133]
[1760628901581,0.01924077,110360.0,110350.0,0.19951548]
[1760628901783,0.20555799,110380.0,110370.0,0.18120866]
[1760628901989,0.18120866,110370.0,110360.0,0.18121152]
[1760628902210,0.38406936,110370.0,110350.0,0.00014983]
[1760628902425,0.52122508,110360.0,110350.0,0.00014983]
[1760628902647,0.68425359,110360.0,110350.0,0.00014983]
[1760628903909,0.66048165,110360.0,110350.0,0.00014983]
[1760628904991,5.68583212,110360.0,110350.0,0.00014983]
[1760628905197,5.7755142,110360.0,110350.0,0.00014983]
[1760628906015,5.70628367,110360.0,110350.0,0.00014983]
[1760628906432,5.70528367,110360.0,110350.0,0.00014983]
[1760628906881,5.61560159,110360.0,110350.0,0.00014983]
[1760628907093,5.63937353,110360.0,110350.0,1e-08]
[1760628907314,5.67555581,110360.0,110350.0,1e-08]
[1760628907519,5.70043431,110360.0,110350.0,1e-08]
[1760628907955,5.70143431,110360.0,110350.0,1e-08]
[1760628908160,5.79111639,110360.0,110350.0,1e-08]
[1760628908796,5.79011639,110360.0,110350.0,1e-08]
[1760628909004,5.79111639,110360.0,110350.0,1e-08]
[1760628909225,5.18129079,110320.0,110310.0,0.01798804]
[1760628909438,5.66144042,110320.0,110310.0,0.01798804]
[1760628909655,0.18132366,110300.0,110290.0,0.01798804]
[1760628909835,0.32132366,110300.0,110290.0,0.01798804]
[1760628910071,0.32132366,110300.0,110280.0,0.18135571]
[1760628911170,0.1813401,110290.0,110280.0,0.18135654]
[1760628911558,0.01,110290.0,110280.0,0.18135654]
[1760628912177,0.1913401,110290.0,110280.0,0.18135654]
[1760628912370,0.01,110290.0,110280.0,0.18135654]
[1760628912953,0.1913401,110290.0,110270.0,0.18137167]
[1760628913154,0.1913401,110290.0,110250.0,0.20841101]
[1760628913155,0.19043574,110280.0,110250.0,0.20841101]
[1760628913361,0.26043574,110280.0,110260.0,0.18138944]
[1760628913573,0.26043574,110280.0,110270.0,0.18137299]
[1760628913777,0.07,110280.0,110270.0,0.18137299]
[1760628913938,0.19038984,110300.0,110280.0,0.18134213]
[1760628914140,0.29132366,110300.0,110280.0,0.18134213]
[1760628914396,0.11157931,110300.0,110290.0,0.1813401]
[1760628914997,0.14086803,110300.0,110280.0,0.18185175]
[1760628915200,0.29290568,110300.0,110280.0,0.1818557]
[1760628915519,0.11157931,110300.0,110290.0,0.18371778]
[1760628915716,0.11157931,110300.0,110290.0,0.20185179]
[1760628915926,0.11157931,110300.0,110290.0,0.00237768]
[1760628915927,0.29290297,110300.0,110290.0,0.00237768]
[1760628918256,5.29290297,110300.0,110290.0,0.00237768]
[1760628918444,5.72258505,110300.0,110290.0,0.00237768]
[1760628918667,5.72258505,110300.0,110290.0,0.15057768]
[1760628920126,5.74169522,110300.0,110290.0,0.15057768]
[1760628921124,5.74269522,110300.0,110290.0,0.15057768]
[1760628921362,0.1813401,110290.0,110280.0,1e-08]
[1760628921569,5.74102218,110290.0,110280.0,1e-08]
[1760628921770,5.81289661,110290.0,110280.0,1e-08]
[1760628921977,5.85274278,110290.0,110280.0,1e-08]
[1760628922181,5.87660711,110290.0,110280.0,1e-08]
[1760628923916,5.89257618,110290.0,110280.0,1e-08]
[1760628924130,5.89257618,110290.0,110230.0,0.01838804]
[1760628924131,0.18142235,110240.0,110230.0,0.01838804]
[1760628924345,0.16628429,110240.0,110230.0,0.01853799]
[1760628924548,0.31142235,110240.0,110230.0,0.01853799]
[1760628924756,0.31142235,110240.0,110230.0,0.00054995]
[1760628925143,0.33104057,110240.0,110230.0,0.00054995]
[1760628925364,0.67104057,110240.0,110230.0,0.00054995]
[1760628925588,5.67104057,110240.0,110230.0,0.00054995]
[1760628925802,5.76072265,110240.0,110230.0,0.00054995]
[1760628927281,5.77973417,110240.0,110230.0,0.00054995]
[1760628927706,5.77973417,110240.0,110230.0,0.00411906]
[1760628927849,5.69005209,110240.0,110230.0,0.00411906]
[1760628928062,5.67104057,110240.0,110230.0,0.00411906]
[1760628928649,0.18145527,110220.0,110210.0,0.0004]
[1760628928860,0.18145527,110220.0,110210.0,0.00055001]
[1760628928861,5.65145527,110220.0,110210.0,0.00055001]
[1760628929074,5.68763755,110220.0,110210.0,1e-08]
[1760628929278,5.77890033,110220.0,110210.0,1e-08]
[1760628929694,5.77890033,110220.0,110160.0,0.07307163]
[1760628929695,5.0,110210.0,110160.0,0.07307163]
[1760628929914,5.5215541,110160.0,110150.0,0.01838804]
[1760628930132,5.64205247,110160.0,110150.0,0.01838804]
[1760628930375,5.76791681,110160.0,110150.0,0.0004]
[1760628930596,5.76949837,110160.0,110150.0,0.0004]
[1760628931026,5.76891681,110160.0,110150.0,0.0004]
[1760628931249,5.76891681,110160.0,110150.0,1e-08]
[1760628931709,5.78732979,110160.0,110150.0,1e-08]
[1760628932556,5.78632979,110160.0,110150.0,1e-08]
[1760628932998,5.78732979,110160.0,110150.0,1e-08]
[1760628933205,5.78632979,110160.0,110150.0,1e-08]
[1760628933435,5.80156969,110160.0,110150.0,1e-08]
[1760628933673,5.80056969,110160.0,110150.0,1e-08]
[1760628933883,5.80215134,110160.0,110150.0,1e-08]
[1760628934096,5.80315134,110160.0,110150.0,1e-08]
[1760628934298,5.8185918,110160.0,110150.0,1e-08]
[1760628934503,5.8195918,110160.0,110150.0,1e-08]
[1760628934713,5.8195918,110160.0,110150.0,0.00476358]
[1760628934956,5.8195918,110160.0,110150.0,1e-08]
[1760628935163,0.21936747,110130.0,110120.0,0.07830579]
[1760628935379,5.72492245,110130.0,110120.0,0.07830579]
[1760628935615,5.72492245,110130.0,110120.0,1e-08]
[1760628935832,5.73916646,110130.0,110120.0,1e-08]
[1760628936700,5.55783532,110100.0,110090.0,0.0004]
[1760628936916,5.69783532,110100.0,110090.0,0.0004]
[1760628937134,5.76728926,110100.0,110090.0,0.0004]
[1760628937802,5.76728926,110100.0,110090.0,0.00054981]
[1760628938231,5.21785182,110090.0,110080.0,0.08393994]
[1760628938443,5.34785182,110090.0,110080.0,0.08408939]
[1760628939101,5.65166954,110090.0,110080.0,0.08408939]
[1760628939325,5.74135162,110090.0,110080.0,0.08408939]
[1760628939559,5.65166954,110090.0,110080.0,0.08408939]
[1760628940441,0.65166954,110090.0,110080.0,0.08408939]
[1760628940648,0.13,110090.0,110080.0,0.26577543]
[1760628943658,0.01798804,110110.0,110100.0,0.18165304]
[1760628943870,0.31962458,110110.0,110090.0,0.18165509]
[1760628944077,0.18165304,110100.0,110080.0,0.27485973]
[1760628944294,0.18166954,110090.0,110080.0,0.08408939]
[1760628944508,0.19166954,110090.0,110080.0,0.08408939]
[1760628945595,0.53166954,110090.0,110080.0,0.08408939]
[1760628945812,5.53166954,110090.0,110080.0,0.08408939]
[1760628946037,5.62135162,110090.0,110080.0,0.08408939]
[1760628946250,5.6575339,110090.0,110080.0,0.08408939]
[1760628949027,0.53166954,110090.0,110080.0,0.08408939]
[1760628949658,5.53166954,110090.0,110080.0,0.08408939]
[1760628949867,5.56785182,110090.0,110080.0,0.08826167]
[1760628950697,5.53166954,110090.0,110080.0,0.08826167]
[1760628951324,0.53166954,110090.0,110080.0,0.08826167]
[1760628951539,0.19166954,110090.0,110080.0,0.08826167]
[1760628952362,5.19166954,110090.0,110080.0,0.08826167]
[1760628952564,5.20817185,110090.0,110080.0,0.08826167]
[1760628953019,5.24435413,110090.0,110080.0,1e-08]
[1760628953230,5.26338324,110090.0,110080.0,1e-08]
[1760628953444,5.33403621,110090.0,110080.0,1e-08]
[1760628953656,5.29785393,110090.0,110080.0,1e-08]
[1760628953864,0.20817185,110090.0,110080.0,1e-08]
[1760628954073,0.54817185,110090.0,110080.0,1e-08]
[1760628954488,0.20817185,110090.0,110080.0,1e-08]
[1760628954690,0.19166954,110090.0,110080.0,1e-08]
[1760628955140,0.19266954,110090.0,110080.0,1e-08]
[1760628955362,0.2082237,110090.0,110080.0,1e-08]
[1760628955757,0.2082237,110090.0,110080.0,0.18168605]
[1760628955916,0.02655416,110090.0,110080.0,0.18168605]
[1760628956280,0.01,110090.0,110080.0,0.18168605]
[1760628957330,0.02661372,110090.0,110080.0,0.18168605]
[1760628958607,0.20828326,110090.0,110080.0,1e-08]
[1760628958815,0.22911009,110090.0,110080.0,1e-08]
[1760628959034,0.02661372,110090.0,110080.0,0.18168605]
[1760628960089,0.20828326,110090.0,110080.0,0.18168605]
[1760628960480,0.22735677,110090.0,110080.0,1e-08]
[1760628960735,0.25117123,110090.0,110080.0,1e-08]
[1760628960949,5.63762894,110090.0,110080.0,1e-08]
[1760628961174,0.63762894,110090.0,110080.0,1e-08]
[1760628961387,5.66938155,110090.0,110080.0,1e-08]
[1760628961813,5.63762894,110090.0,110080.0,1e-08]
[1760628962252,0.59117123,110090.0,110080.0,1e-08]
[1760628962688,0.62292384,110090.0,110080.0,1e-08]
[1760628963326,0.61498569,110090.0,110080.0,1e-08]
[1760628963710,0.64704657,110090.0,110080.0,1e-08]
[1760628964030,0.07774811,110090.0,110080.0,0.18168605]
[1760628964288,0.04568723,110090.0,110080.0,0.19985465]
[1760628964494,0.04568723,110090.0,110080.0,0.18168605]
[1760628964705,0.06973361,110090.0,110080.0,0.18168605]
[1760628965561,0.04568723,110090.0,110080.0,0.18168605]
[1760628965771,0.03568723,110090.0,110080.0,0.18168605]
[1760628967060,0.08973361,110090.0,110080.0,0.18168605]
[1760628967281,0.03568723,110090.0,110080.0,0.18168605]
[1760628967710,0.03568723,110090.0,110080.0,0.66548854]
[1760628967943,0.03568723,110090.0,110080.0,0.18168605]
[1760628968161,0.03568723,110090.0,110080.0,1e-08]
[1760628968162,0.24333013,110090.0,110080.0,1e-08]
[1760628968378,0.29943739,110090.0,110080.0,1e-08]
[1760628968598,0.61539101,110090.0,110080.0,1e-08]
[1760628969019,0.66301993,110090.0,110080.0,1e-08]
[1760628969666,5.63095905,110090.0,110080.0,1e-08]
[1760628970879,0.18170255,110070.0,110060.0,0.30732681]
[1760628971146,0.36577888,110070.0,110060.0,0.48904587]
[1760628971371,0.36577888,110070.0,110060.0,0.30732681]
[1760628972566,0.18407633,110070.0,110060.0,0.48904587]
[1760628973512,0.17583661,110070.0,110060.0,0.97284836]
[1760628973747,0.0167631,110070.0,110060.0,1.53204076]
[1760628973982,0.01927813,110090.0,110080.0,0.18168604]
[1760628974195,0.05400032,110090.0,110070.0,0.18168782]
[1760628974403,0.18010715,110090.0,110070.0,0.52170221]
[1760628974610,0.18010715,110090.0,110060.0,1.07162333]
[1760628974826,0.18010715,110090.0,110080.0,0.18168604]
[1760628975042,0.15601104,110090.0,110080.0,0.66548853]
[1760628975252,0.15601104,110090.0,110080.0,0.18168604]
[1760628975253,0.03601104,110090.0,110080.0,0.18168604]
[1760628975466,0.03601104,110090.0,110080.0,1.00548853]
[1760628975711,0.03601104,110090.0,110080.0,0.61137616]
[1760628975915,0.03601104,110090.0,110080.0,0.18168604]
[1760628976374,0.03601104,110090.0,110080.0,0.66548853]
[1760628976593,0.01673415,110090.0,110080.0,0.66548853]
[1760628976814,0.03598459,110090.0,110080.0,0.66548853]
[1760628977250,0.01672058,110090.0,110080.0,0.66548853]
[1760628977465,0.01672058,110090.0,110080.0,0.18168604]
[1760628977701,0.03598199,110090.0,110080.0,0.18168604]
[1760628980039,0.03598199,110090.0,110080.0,0.66548853]
[1760628980256,0.01672058,110090.0,110080.0,0.66548853]
[1760628980461,0.01672058,110090.0,110080.0,0.18168604]
[1760628980892,0.01672058,110090.0,110080.0,0.20024802]
[1760628981524,0.04597983,110090.0,110080.0,0.18168604]
[1760628981953,0.04550274,110090.0,110080.0,0.18168604]
[1760628982204,0.03550274,110090.0,110080.0,0.18168604]
[1760628982689,0.04550274,110090.0,110080.0,0.18168604]
[1760628982949,0.22717228,110090.0,110080.0,0.18168604]
[1760628983165,0.06959885,110090.0,110080.0,0.18168604]
[1760628983379,0.03550274,110090.0,110080.0,0.18168604]
[1760628983812,0.04146263,110090.0,110070.0,0.00059629]
[1760628984032,0.20578215,110080.0,110070.0,0.00059629]
[1760628984226,0.3550414,110080.0,110070.0,0.00059629]
[1760628984437,0.17335536,110080.0,110070.0,0.18229884]
[1760628984647,0.14925925,110080.0,110070.0,0.1952801]
[1760628984862,0.14925925,110080.0,110070.0,0.18229884]
[1760628985296,0.33252765,110080.0,110070.0,0.18229884]
[1760628985502,0.15084161,110080.0,110070.0,0.18229884]
[1760628985723,0.33252765,110080.0,110070.0,0.18229884]
[1760628985933,0.15084161,110080.0,110070.0,0.18229884]
[1760628986147,0.3132684,110080.0,110070.0,0.18229884]
[1760628986360,0.3132684,110080.0,110070.0,0.1807172]
[1760628987300,0.13158236,110080.0,110070.0,0.1807172]
[1760628988247,0.00158236,110080.0,110070.0,0.1807172]
[1760628989181,0.18167413,110090.0,110080.0,0.18168604]
[1760628989427,0.34891573,110090.0,110060.0,0.4981317]
[1760628989661,0.18170255,110070.0,110060.0,0.30732681]
[1760628989883,0.32994227,110070.0,110060.0,0.30732681]
[1760628990100,0.32994227,110070.0,110060.0,0.30792317]
[1760628990321,0.14823972,110070.0,110060.0,0.48964223]
[1760628990994,0.32994227,110070.0,110060.0,0.30792317]
[1760628991204,0.32994227,110070.0,110060.0,0.48964223]
[1760628991849,0.14823972,110070.0,110060.0,0.48964223]
[1760628993328,0.14,110070.0,110060.0,0.48964223]
[1760628993562,0.18166954,110090.0,110080.0,0.18168532]
[1760628993806,0.19962725,110110.0,110100.0,0.18165304]
[1760628994044,0.37475211,110110.0,110100.0,0.00049273]
[1760628994287,0.35676407,110110.0,110100.0,0.00049273]
[1760628994533,0.00108937,110070.0,110060.0,0.49871971]
[1760628994786,0.01108937,110070.0,110060.0,0.4992218]
[1760628996014,0.00108937,110070.0,110060.0,0.8392218]
[1760628996254,0.00108937,110070.0,110060.0,1.32302429]
[1760628996526,0.00108937,110070.0,110060.0,1.41271441]
[1760628996752,0.00108937,110070.0,110060.0,1.44889669]
[1760628997257,0.00108937,110070.0,110060.0,0.4992218]
[1760628997469,0.00108937,110070.0,110060.0,0.98302429]
[1760628998342,0.00108937,110070.0,110060.0,1.10889669]
[1760628998595,0.00108937,110070.0,110060.0,1.44889669]
[1760628999045,0.00108937,110070.0,110060.0,0.9650942]
[1760628999262,0.00108937,110070.0,110060.0,0.8392218]
[1760628999487,0.00108937,110070.0,110060.0,1.41472211]
[1760628999711,0.00108937,110070.0,110060.0,0.93091962]
[1760628999940,0.18326945,110080.0,110070.0,0.18170255]
[1760629000155,0.12158225,110080.0,110070.0,0.18170255]
[1760629001043,0.12,110080.0,110070.0,0.18170255]
[1760629003370,0.30168604,110080.0,110070.0,0.18170255]
[1760629003587,0.30168604,110080.0,110060.0,1.32144211]
[1760629003834,0.30168604,110080.0,110070.0,0.18170255]
[1760629004082,0.12,110080.0,110070.0,0.18170255]
[1760629004530,0.30168604,110080.0,110070.0,0.18170255]
[1760629005199,0.08645385,110080.0,110070.0,0.18170255]
[1760629005415,0.05,110080.0,110070.0,0.18170255]
[1760629005644,0.05,110080.0,110070.0,0.66550504]
[1760629005861,0.20872377,110100.0,110080.0,0.18168604]
[1760629006083,0.32872377,110100.0,110090.0,0.18166954]
[1760629006297,0.32872377,110100.0,110080.0,0.18168604]
[1760629006525,0.31073573,110100.0,110090.0,0.18166954]
[1760629006733,0.18166954,110090.0,110080.0,0.18168604]
[1760629006947,0.29166954,110090.0,110080.0,0.18168604]
[1760629007622,0.18168604,110080.0,110070.0,0.19078767]
[1760629007849,0.18166954,110090.0,110070.0,0.19078767]
[1760629008079,0.30166954,110090.0,110070.0,0.19078767]
[1760629008309,0.30166954,110090.0,110080.0,0.18168604]
[1760629008776,0.12,110090.0,110080.0,0.18168604]
[1760629009024,0.30166954,110090.0,110080.0,0.18168604]
[1760629009247,0.18168604,110080.0,110060.0,0.83763962]
[1760629009460,0.30168604,110080.0,110070.0,0.18170255]
[1760629010260,0.12,110080.0,110070.0,0.18170255]
[1760629011364,0.19073573,110100.0,110080.0,0.18168604]
[1760629011587,0.3307382,110100.0,110090.0,0.18166954]
[1760629012226,0.3307382,110100.0,110080.0,0.18168604]
[1760629012440,0.18166954,110090.0,110070.0,0.19078767]
[1760629012656,0.32166954,110090.0,110070.0,0.19078767]
[1760629012886,0.32166954,110090.0,110080.0,0.18168604]
[1760629013111,0.14,110090.0,110080.0,0.18168604]
[1760629013337,0.32166954,110090.0,110080.0,0.18168604]
[1760629014223,0.32166954,110090.0,110070.0,0.19078767]
[1760629014445,0.32166954,110090.0,110080.0,0.18168604]
[1760629014660,0.32166954,110090.0,110070.0,0.19078767]
[1760629014877,0.14,110090.0,110080.0,0.18168604]
[1760629015226,0.32166954,110090.0,110080.0,0.18168604]
[1760629015855,0.32166954,110090.0,110070.0,0.19078767]
[1760629016068,0.18168604,110080.0,110060.0,0.83763962]
[1760629016289,0.13,110080.0,110070.0,0.18170255]
[1760629016547,0.31168604,110080.0,110070.0,0.18170255]
[1760629017387,0.13,110080.0,110070.0,0.18170255]
[1760629018267,0.31168604,110080.0,110070.0,0.18170255]
[1760629018481,0.13,110080.0,110070.0,0.18170255]
[1760629019124,0.1907382,110100.0,110080.0,0.18166982]
[1760629019336,0.3107382,110100.0,110080.0,0.18166982]
[1760629019757,0.3107382,110100.0,110090.0,0.18166954]
[1760629019955,0.18166954,110090.0,110080.0,0.18166982]
[1760629020177,0.30166954,110090.0,110080.0,0.18166982]
[1760629020431,0.18168604,110080.0,110070.0,0.19078767]
[1760629020660,0.12,110080.0,110070.0,0.19078767]
[1760629020859,0.30168604,110080.0,110070.0,0.19078767]
[1760629021497,0.12,110080.0,110070.0,0.19078767]
[1760629022056,0.30168604,110080.0,110070.0,0.18170255]
[1760629022748,0.35093002,110080.0,110070.0,0.18170255]
[1760629022960,0.18170255,110070.0,110060.0,0.48856214]
[1760629023165,0.30170255,110070.0,110060.0,0.48856214]
[1760629023371,0.30994227,110070.0,110060.0,0.30684308]
[1760629023584,0.30994227,110070.0,110060.0,0.48856214]
[1760629023784,0.30170255,110070.0,110060.0,0.48856214]
[1760629024210,0.30994227,110070.0,110060.0,0.30684308]
[1760629024606,0.30994227,110070.0,110060.0,0.48856214]
[1760629025451,0.36076677,110070.0,110060.0,0.30684308]
[1760629025663,0.30994227,110070.0,110060.0,0.30684308]
[1760629026798,0.30994227,110070.0,110060.0,0.48856214]
[1760629027163,0.30994227,110070.0,110060.0,0.30684308]
[1760629028066,0.30994227,110070.0,110060.0,0.48856214]
[1760629028270,0.30994227,110070.0,110060.0,0.30684308]
[1760629028471,0.30994227,110070.0,110060.0,0.48856214]
[1760629028681,0.12823972,110070.0,110060.0,0.48856214]
[1760629028892,0.30994227,110070.0,110060.0,0.48856214]
[1760629029305,0.12823972,110070.0,110060.0,0.48856214]
[1760629029509,0.30994227,110070.0,110060.0,0.30684308]
[1760629029709,0.30994227,110070.0,110060.0,0.48856214]
[1760629029918,0.30994227,110070.0,110060.0,0.30684308]
[1760629030130,0.3591051,110070.0,110060.0,0.30684308]
[1760629030332,0.30994227,110070.0,110060.0,0.30684308]
[1760629031572,0.12823972,110070.0,110060.0,0.48856214]
[1760629031773,0.30994227,110070.0,110060.0,0.48856214]
[1760629032386,0.30994227,110070.0,110060.0,0.30684308]
[1760629032585,0.30994227,110070.0,110060.0,0.48856214]
[1760629032799,0.33034002,110070.0,110060.0,0.30684308]
[1760629033450,0.67034002,110070.0,110060.0,0.30526081]
[1760629033714,5.67034002,110070.0,110060.0,0.30526081]
[1760629033931,5.67034002,110070.0,110060.0,1e-08]
[1760629033932,5.7065223,110070.0,110060.0,1e-08]
[1760629034428,5.52173557,110050.0,110040.0,0.04873224]
[1760629034675,5.52173557,110050.0,110040.0,0.04923313]
[1760629034676,5.740483,110050.0,110040.0,0.04923313]
[1760629035465,5.77666528,110050.0,110040.0,0.04923313]
[1760629035925,5.6869832,110050.0,110040.0,0.04923313]
[1760629036169,5.65080092,110050.0,110040.0,0.04923313]
[1760629036408,0.65238454,110050.0,110040.0,0.04923313]
[1760629036654,0.65238454,110050.0,110040.0,0.04765059]
[1760629037145,0.65238454,110050.0,110040.0,0.22940268]
[1760629037387,0.65238454,110050.0,110040.0,0.04765059]
[1760629037624,0.47064897,110050.0,110040.0,0.22940268]
[1760629037861,0.65238454,110050.0,110040.0,0.04765059]
[1760629038778,5.65238454,110050.0,110040.0,0.04765059]
[1760629038993,5.68856682,110050.0,110040.0,0.04765059]
[1760629039239,5.7782489,110050.0,110040.0,0.04765059]
[1760629039881,5.77666528,110050.0,110040.0,0.04765059]
[1760629040102,5.75631972,110050.0,110040.0,0.04884359]
[1760629040615,5.65238461,110050.0,110040.0,0.04884359]
[1760629040862,0.65238461,110050.0,110040.0,0.04884359]
[1760629041086,0.13064904,110050.0,110040.0,0.23059568]
[1760629041312,0.12906535,110050.0,110040.0,0.23059568]
[1760629041543,0.12,110050.0,110040.0,0.23059568]
[1760629041765,0.12,110050.0,110040.0,0.97867465]
[1760629041993,0.12,110050.0,110040.0,0.3202858]
[1760629042218,0.215822,110090.0,110070.0,0.18170255]
[1760629042476,0.335822,110090.0,110080.0,0.18168604]
[1760629042732,0.335822,110090.0,110070.0,0.18170255]
[1760629042733,0.18170255,110070.0,110040.0,0.31859191]
[1760629042974,0.18173557,110050.0,110040.0,0.0471497]
[1760629043215,0.31080092,110050.0,110040.0,0.0471497]
[1760629043681,5.65080092,110050.0,110040.0,0.04765059]
[1760629044360,5.65238455,110050.0,110040.0,0.04656122]
[1760629044850,0.65238455,110050.0,110040.0,0.04656122]
[1760629045086,0.69145366,110050.0,110040.0,0.04656122]
[1760629045316,0.65238455,110050.0,110040.0,0.04656122]
[1760629045544,0.65080092,110050.0,110040.0,0.04656122]
[1760629045806,0.65238454,110050.0,110040.0,0.04656122]
[1760629046491,0.31238454,110050.0,110040.0,0.22831331]
[1760629046956,0.36179496,110050.0,110040.0,0.04656122]
[1760629047578,5.36179496,110050.0,110040.0,0.04656122]
[1760629048036,0.31238454,110050.0,110040.0,0.04656122]
[1760629049936,0.31010273,110050.0,110040.0,0.04585216]
[1760629052955,0.31010273,110050.0,110040.0,0.04704516]
[1760629053994,0.31010273,110050.0,110040.0,0.22879725]
[1760629054210,0.32679325,110050.0,110040.0,0.22879725]
[1760629054599,0.12836716,110050.0,110040.0,0.22879725]
[1760629054789,0.14505826,110050.0,110040.0,0.22879725]
[1760629055003,0.13599291,110050.0,110040.0,0.22879725]
[1760629055218,0.11771819,110050.0,110040.0,0.22879725]
[1760629056942,0.11771819,110050.0,110040.0,0.97687622]
[1760629057167,0.11771819,110050.0,110040.0,1.06656634]
[1760629057388,0.03718483,110090.0,110070.0,0.18170255]
[1760629057600,0.31965837,110090.0,110070.0,0.18170255]
[1760629057813,0.18326853,110080.0,110070.0,0.18170255]
[1760629058039,0.30326853,110080.0,110060.0,0.19079021]
[1760629058466,0.30326853,110080.0,110060.0,0.18171876]
[1760629058681,0.30326853,110080.0,110070.0,0.18170255]
[1760629059527,0.12158249,110080.0,110070.0,0.18170255]
[1760629059954,0.30326853,110080.0,110070.0,0.18170255]
[1760629060163,0.30326853,110080.0,110060.0,0.32991876]
[1760629060376,0.35549157,110080.0,110060.0,0.18171876]
[1760629060589,0.18170255,110070.0,110060.0,0.1817167]
[1760629060798,0.30170255,110070.0,110060.0,0.1817167]
[1760629061052,0.12,110070.0,110060.0,0.1817167]
[1760629062525,0.33784913,110080.0,110070.0,0.18170255]
[1760629062744,0.26774447,110080.0,110070.0,0.18170255]
[1760629062959,0.26774447,110080.0,110070.0,0.92978152]
[1760629063170,0.26616206,110080.0,110070.0,1.01947164]
[1760629063621,0.26616206,110080.0,110070.0,1.39565392]
[1760629063838,0.15616206,110080.0,110070.0,1.39565392]
[1760629064043,0.15616206,110080.0,110070.0,0.61139267]
[1760629064898,0.15616206,110080.0,110070.0,1.35947164]
[1760629065106,0.15616206,110080.0,110070.0,0.61139267]